[Event "USA-ch Women 2024"]
[Site "Saint Louis"]
[Date "2024.10.24"]
[Round "11.6"]
[White "Krush, Irina"]
[Black "Paikidze, Nazi"]
[Result "1/2-1/2"]
[ECO "E27"]
[WhiteElo "2388"]
[BlackElo "2314"]
[Annotator "RC"]
[PlyCount "179"]
[EventDate "2024.10.09"]
[EventType "tourn"]
[EventCountry "USA"]
[SourceTitle "playchess.com"]
[Source "ChessBase"]
[SourceQuality "1"]
[TimeControl "40/5400+30:1800+30"]

1. d4 {[%emt 0:00:07]} Nf6 {[%emt 0:00:07]} 2. c4 {[%emt 0:00:12]} e6 {[%emt 0:00:04]} 3. Nc3 {[%emt 0:00:12]} Bb4 {[%emt 0:00:04]} 4. a3 {[%emt 0:00:18]} Bxc3+ {[%emt 0:00:56]} 5. bxc3 {[%emt 0:00:04]} d6 {[%emt 0:02:25]} 6. f3 {[%emt 0:01:45]} O-O {[%emt 0:03:05]} 7. e4 {[%emt 0:00:17]} Nh5 {[%emt 0:02:59]} 8. Nh3 {[%emt 0:16:01]} f5 {[%emt 0:00:41]} 9. Nf2 {[%emt 0:07:39]} f4 {[%emt 0:03:38]} 10. c5 {[%emt 0:06:33]} dxc5 {[%emt 0:08:21]} 11. a4 {[%emt 0:00:09]} cxd4 {[%emt 0:02:18]} 12. cxd4 {[%emt 0:02:10]} Nc6 {[%emt 0:07:05]} 13. Bb2 {[%emt 0:01:09]} Qg5 {[%emt 0:02:35]} 14. Rc1 {[%emt 0:10:11]} Rd8 {[%emt 0:06:44]} 15. Rc5 {[%emt 0:00:43]} Qxc5 {[%emt 0:07:16]} 16. dxc5 {[%emt 0:00:03]} Rxd1+ {[%emt 0:00:04]} 17. Kxd1 {[%emt 0:00:12]} a6 {[%emt 0:05:27]} 18. Bc4 {[%emt 0:02:58]} Na5 {[%emt 0:03:19]} 19. Ba2 {[%emt 0:00:42]} Bd7 {[%emt 0:02:26]} 20. Kc1 {[%emt 0:03:20]} Kf7 {[%emt 0:03:33]} 21. Bc3 {[%emt 0:01:25]} b6 {[%emt 0:16:28]} 22. cxb6 {[%emt 0:17:49]} cxb6 {[%emt 0:00:04]} 23. Rd1 {[%emt 0:00:08]} Bxa4 {[%emt 0:04:33]} 24. Rd6 {[%emt 0:00:05]} Bb3 {[%emt 0:02:49]} 25. Bxb3 {[%emt 0:01:52]} Nxb3+ {[%emt 0:00:04]} 26. Kc2 {[%emt 0:00:13]} Nc5 {[%emt 0:00:32]} 27. Rxb6 {[%emt 0:00:09]} Rc8 {[%emt 0:01:31]} 28. Rb4 {[%emt 0:03:16]} Nd7 {[%emt 0:01:27]} 29. Nd3 {[%emt 0:02:23]} e5 {[%emt 0:04:08]} 30. Rb7 {[%emt 0:05:57]} Ke8 {[%emt 0:00:05]} 31. Kd2 {[%emt 0:03:12]} Nc5 {[%emt 0:02:36]} 32. Nxc5 {[%emt 0:00:44]} Rxc5 {[%emt 0:00:02]} 33. Bb4 {[%emt 0:04:41]} Rb5 {[%emt 0:01:42]} 34. Rxb5 {[%emt 0:00:10]} axb5 {[%emt 0:00:02]} 35. Bd6 {[%emt 0:00:10]} Kd7 {[%emt 0:02:10]} 36. Bxe5 {[%emt 0:00:06]} Ke6 {[%emt 0:00:24]} 37. Bd4 {[%emt 0:05:04]} Nf6 {[%emt 0:00:04]} 38. Kc3 {[%emt 0:00:20]} Ne8 {[%emt 0:00:35]} 39. Kb4 {[%emt 0:00:12]} g5 {[%emt 0:01:02]} 40. Kxb5 {[%emt 0:00:15]} Nd6+ {[%emt 0:00:44]} 41. Kc5 {[%emt 0:32:18]} h5 {[%emt 0:33:29]} 42. Bc3 {[%emt 0:00:00]} h4 {[%emt 0:00:00]} 43. h3 {[%emt 0:00:00]} Nf7 {[%emt 0:00:00]} 44. Ba5 {[%emt 0:00:00]} Ne5 {[%emt 0:00:00]} 45. Bd8 {[%emt 0:01:49]} Nf7 {[%emt 0:00:00]} 46. Bc7 {[%emt 0:00:15]} Kd7 {[%emt 0:00:00]} 47. Bb8 {[%emt 0:00:44]} Ke6 {[%emt 0:00:00]} 48. Kc6 {[%emt 0:00:38]} Nd8+ {[%emt 0:00:00]} 49. Kc7 {[%emt 0:00:04]} Nf7 {[%emt 0:00:00]} 50. Kc8 {[%emt 0:00:29]} Ke7 {[%emt 0:00:00]} 51. Bc7 {[%emt 0:01:19]} Ke8 {[%emt 0:00:00]} 52. Kb7 {[%emt 0:00:35]} Ke7 {[%emt 0:00:00]} 53. Kc6 {[%emt 0:00:26]} Ke6 {[%emt 0:00:00]} 54. Kc5 {[%emt 0:01:46]} Kd7 {[%emt 0:00:00]} 55. Bb8 {[%emt 0:01:49]} Ke6 {[%emt 0:00:00]} 56. Kd4 {[%emt 0:01:14]} Nh6 {[%emt 0:00:00]} 57. Bc7 {[%emt 0:00:17]} Nf7 {[%emt 0:00:00]} 58. e5 {[%emt 0:01:12]} Kd7 {[%emt 0:01:16]} 59. Bb8 {[%emt 0:00:30]} Ke6 {[%emt 0:00:05]} 60. Ke4 {[%emt 0:00:37]} Nd8 {[%emt 0:00:08]} 61. Bd6 {[%emt 0:00:30]} Nc6 {[%emt 0:02:54]} 62. Bc7 {[%emt 0:00:17]} Kd7 {[%emt 0:00:13]} 63. Bd6 {[%emt 0:00:40]} Ke6 {[%emt 0:00:03]} 64. Bc7 {[%emt 0:01:07]} Kd7 {[%emt 0:00:01]} 65. Bb6 {[%emt 0:00:32]} Ke6 {[%emt 0:00:02]} 66. Bd4 {[%emt 0:00:16]} Ne7 {[%emt 0:02:08]} 67. Bc5 {[%emt 0:00:21]} Nf5 {[%emt 0:00:18]} 68. Bf2 {[%emt 0:00:54]} Ne7 {[%emt 0:00:08]} 69. Bc5 {[%emt 0:00:20]} Nf5 {[%emt 0:00:05]} 70. Bb6 {[%emt 0:00:41]} Ng3+ {[%emt 0:00:22]} 71. Kd4 {[%emt 0:00:11]} Nf5+ {[%emt 0:00:08]} 72. Kd3 {[%emt 0:00:23]} Kxe5 {[%emt 0:01:45]} 73. Bd8 {[%emt 0:00:03]} Ne3 {[%emt 0:00:09]} 74. Bxg5 {[%emt 0:00:08]} Nxg2 {[%emt 0:00:18]} 75. Ke2 {[%emt 0:00:24]} Kf5 {[%emt 0:00:17]} 76. Bd8 {[%emt 0:00:08]} Ne3 {[%emt 0:00:41]} 77. Bxh4 {[%emt 0:00:43]} Nc4 {[%emt 0:03:03]} 78. Bf2 {[%emt 0:00:28]} Ne5 {[%emt 0:00:15]} 79. Bd4 {[%emt 0:00:21]} Ng6 {[%emt 0:00:18]} 80. Bb6 {[%emt 0:00:57]} Ke5 {[%emt 0:00:34]} 81. Bd8 {[%emt 0:00:21]} Kf5 {[%emt 0:00:18]} 82. Kf2 {[%emt 0:00:44]} Ne5 {[%emt 0:00:13]} 83. Kg2 {[%emt 0:00:10]} Nd3 {[%emt 0:00:31]} 84. h4 {[%emt 0:00:46]} Kg6 {[%emt 0:01:02]} 85. Be7 {[%emt 0:01:40]} Kh5 {[%emt 0:00:22]} 86. Bg5 {[%emt 0:00:20]} Ne5 {[%emt 0:00:39]} 87. Kf2 {[%emt 0:00:44]} Ng6 {[%emt 0:00:31]} 88. Ke2 {[%emt 0:00:11]} Nxh4 {[%emt 0:00:21]} 89. Bxf4 {[%emt 0:00:15]} Nxf3 {[%emt 0:00:03]} 90. Kxf3 {[%emt 0:00:08]} 1/2-1/2